[Event "*** Titled Tuesday Blitz"]
[Site "Chess.com"]
[Date "2020.02.04"]
[Round "9"]
[White "FrogMist"]
[Black "BeanScreen"]
[Result "1-0"]
[WhiteElo "2422"]
[BlackElo "2559"]
[TimeControl "180+2"]
[EndTime "15:08:29 PST"]
[Termination "FrogMist won by resignation"]

1. e4 {[%clk 0:03:00.6]} 1... e5 {[%clk 0:03:00.9]} 2. Nf3 {[%clk 0:03:01.3]}
2... Nc6 {[%clk 0:03:02.7]} 3. Bb5 {[%clk 0:03:02.7]} 3... a6 {[%clk 0:03:04.1]}
4. Ba4 {[%clk 0:03:03.7]} 4... d6 {[%clk 0:03:05.5]} 5. O-O {[%clk 0:03:03.6]}
5... Nf6 {[%clk 0:03:06.9]} 6. Re1 {[%clk 0:03:04]} 6... Be7 {[%clk 0:03:08.4]}
7. d4 {[%clk 0:03:00]} 7... b5 {[%clk 0:03:09.3]} 8. dxe5 {[%clk 0:02:57.9]}
8... dxe5 {[%clk 0:03:11.2]} 9. Qxd8+ {[%clk 0:02:58.8]} 9... Bxd8 {[%clk
0:03:13.1]} 10. Bb3 {[%clk 0:03:00.2]} 10... Bg4 {[%clk 0:03:12.9]} 11. Nbd2
{[%clk 0:03:00.5]} 11... Na5 {[%clk 0:03:01.5]} 12. Nxe5 {[%clk 0:02:59.9]}
12... Nxb3 {[%clk 0:02:59.6]} 13. Nxb3 {[%clk 0:02:53.8]} 13... Be6 {[%clk
0:02:59]} 14. Nc5 {[%clk 0:02:50.7]} 14... Bc8 {[%clk 0:02:57.5]} 15. a4 {[%clk
0:02:47.9]} 15... Be7 {[%clk 0:02:57.6]} 16. Ned3 {[%clk 0:02:45.2]} 16... b4
{[%clk 0:02:52.9]} 17. Bf4 {[%clk 0:02:45.3]} 17... Nd7 {[%clk 0:02:40.1]} 18.
Nxd7 {[%clk 0:02:37.6]} 18... Bxd7 {[%clk 0:02:42]} 19. Bxc7 {[%clk 0:02:19.3]}
19... Rc8 {[%clk 0:02:42.6]} 20. Ba5 {[%clk 0:02:19.1]} 20... Rxc2 {[%clk
0:02:42.4]} 21. Bxb4 {[%clk 0:02:20.4]} 21... Bxb4 {[%clk 0:02:41.5]} 22. Nxb4
{[%clk 0:02:22.3]} 22... Rxb2 {[%clk 0:02:41.3]} 23. Nxa6 {[%clk 0:02:23.7]}
23... O-O {[%clk 0:02:41.1]} 24. Nc5 {[%clk 0:02:24.9]} 24... Bc6 {[%clk
0:02:40]} 25. Reb1 {[%clk 0:02:22.4]} 25... Rc2 {[%clk 0:02:40.2]} 26. Rc1
{[%clk 0:02:23.4]} 26... Re2 {[%clk 0:02:40.7]} 27. Kf1 {[%clk 0:02:21.1]} 27...
Rb2 {[%clk 0:02:29.9]} 28. Nd3 {[%clk 0:02:18.3]} 28... Rd2 {[%clk 0:02:22.7]}
29. Rxc6 {[%clk 0:02:18.1]} 29... Rxd3 {[%clk 0:02:24]} 30. a5 {[%clk
0:02:19.5]} 30... f5 {[%clk 0:02:20.9]} 31. e5 {[%clk 0:02:19]} 31... Rfd8
{[%clk 0:02:19.2]} 32. a6 {[%clk 0:02:19.1]} 32... Rd1+ {[%clk 0:02:20.2]} 33.
Rxd1 {[%clk 0:02:19.7]} 33... Rxd1+ {[%clk 0:02:22.1]} 34. Ke2 {[%clk
0:02:21.4]} 34... Ra1 {[%clk 0:02:22.8]} 35. e6 {[%clk 0:02:22]} 35... Kf8
{[%clk 0:02:22.8]} 36. g3 {[%clk 0:02:16.8]} 36... Ra3 {[%clk 0:02:19.1]} 37.
Rb6 {[%clk 0:02:17]} 37... Ke7 {[%clk 0:02:19]} 38. h4 {[%clk 0:02:16.1]} 38...
Kf6 {[%clk 0:02:16.5]} 39. Kf1 {[%clk 0:02:13.1]} 39... h6 {[%clk 0:02:16.3]}
40. h5 {[%clk 0:02:10.9]} 40... Ra2 {[%clk 0:02:13.3]} 41. Kg2 {[%clk
0:02:11.9]} 41... Ra3 {[%clk 0:02:13.9]} 42. Kh3 {[%clk 0:02:10.1]} 42... Ra2
{[%clk 0:02:14.1]} 43. f4 {[%clk 0:02:10.5]} 43... Ra3 {[%clk 0:02:13.9]} 44.
Rc6 {[%clk 0:02:09.8]} 44... Ra2 {[%clk 0:02:12.1]} 45. Rc7 {[%clk 0:02:09.1]}
45... Rxa6 {[%clk 0:02:11.8]} 46. Rf7+ {[%clk 0:02:03.7]} 46... Kxe6 {[%clk
0:02:12.8]} 47. Rxg7 {[%clk 0:02:05.4]} 47... Kd5 {[%clk 0:02:13.2]} 48. Rg6
{[%clk 0:02:05]} 48... Ra1 {[%clk 0:01:51.5]} 49. Rxh6 {[%clk 0:02:05.3]} 49...
Ke4 {[%clk 0:01:51.1]} 50. Kh4 {[%clk 0:02:05.4]} 50... Rh1+ {[%clk 0:01:43.2]}
51. Kg5 {[%clk 0:02:06.5]} 51... Rh3 {[%clk 0:01:18.2]} 52. g4 {[%clk
0:01:53.3]} 52... fxg4 {[%clk 0:01:05]} 53. Kxg4 {[%clk 0:01:55.2]} 53... Rh1
{[%clk 0:01:04.1]} 54. Re6+ {[%clk 0:01:56.2]} 54... Kd5 {[%clk 0:01:05.3]} 55.
Re3 {[%clk 0:01:56.6]} 55... Kd4 {[%clk 0:01:04.3]} 56. Rh3 {[%clk 0:01:53.4]}
56... Rg1+ {[%clk 0:01:05.4]} 57. Kf5 {[%clk 0:01:54.7]} 57... Rg8 {[%clk
0:01:03.3]} 58. h6 {[%clk 0:01:55.9]} 58... Rf8+ {[%clk 0:01:03.2]} 59. Kg6
{[%clk 0:01:53.3]} 59... Rxf4 {[%clk 0:01:03.4]} 60. h7 {[%clk 0:01:54.3]} 60...
Rg4+ {[%clk 0:01:02.8]} 61. Kf5 {[%clk 0:01:54.9]} 1-0

[Event "*** Titled Tuesday Blitz"]
[Site "Chess.com"]
[Date "2020.02.04"]
[Round "9"]
[White "Kimster98"]
[Black "Hasangatin_Ramil"]
[Result "0-1"]
[WhiteElo "2671"]
[BlackElo "2549"]
[TimeControl "180+2"]
[EndTime "15:08:33 PST"]
[Termination "Hasangatin_Ramil won by resignation"]

1. Nf3 {[%clk 0:01:56.1]} 1... d5 {[%clk 0:02:21.7]} 2. d4 {[%clk 0:01:53.9]}
2... Nf6 {[%clk 0:02:22]} 3. c4 {[%clk 0:01:55.3]} 3... c6 {[%clk 0:02:23]} 4.
Nc3 {[%clk 0:01:55.2]} 4... dxc4 {[%clk 0:02:24.1]} 5. a4 {[%clk 0:01:56]} 5...
Bf5 {[%clk 0:02:25.1]} 6. Ne5 {[%clk 0:01:57.3]} 6... Nbd7 {[%clk 0:02:26]} 7.
Nxc4 {[%clk 0:01:58.9]} 7... Nb6 {[%clk 0:02:27.3]} 8. Ne5 {[%clk 0:01:57.2]}
8... a5 {[%clk 0:02:28.1]} 9. f3 {[%clk 0:01:58.4]} 9... Nfd7 {[%clk 0:02:29.2]}
10. e4 {[%clk 0:01:52.3]} 10... Nxe5 {[%clk 0:02:29.1]} 11. exf5 {[%clk
0:01:52.5]} 11... Nec4 {[%clk 0:02:30.1]} 12. Bxc4 {[%clk 0:01:46.4]} 12... Nxc4
{[%clk 0:02:30.4]} 13. Qb3 {[%clk 0:01:47.9]} 13... Nd6 {[%clk 0:02:29]} 14. Bf4
{[%clk 0:01:46.4]} 14... Qd7 {[%clk 0:02:13.7]} 15. Bxd6 {[%clk 0:01:27.5]}
15... exd6 {[%clk 0:02:10.9]} 16. f6 {[%clk 0:01:27.7]} 16... gxf6 {[%clk
0:02:04.5]} 17. d5 {[%clk 0:01:27.7]} 17... Bg7 {[%clk 0:02:00.4]} 18. O-O
{[%clk 0:01:24.1]} 18... O-O {[%clk 0:01:59.9]} 19. Rad1 {[%clk 0:01:23.8]}
19... f5 {[%clk 0:01:58.7]} 20. Rd3 {[%clk 0:01:22.6]} 20... Rfe8 {[%clk
0:01:53.8]} 21. Qd1 {[%clk 0:01:22.4]} 21... c5 {[%clk 0:01:46.1]} 22. Qb3
{[%clk 0:01:11.6]} 22... Re7 {[%clk 0:01:35]} 23. Nb5 {[%clk 0:01:09.5]} 23...
Rae8 {[%clk 0:01:33.9]} 24. Rd2 {[%clk 0:01:09.7]} 24... Re3 {[%clk 0:01:30.3]}
25. Qc2 {[%clk 0:01:09.1]} 25... b6 {[%clk 0:01:26.6]} 26. Na3 {[%clk 0:01:09]}
26... Bd4 {[%clk 0:01:18.4]} 27. Kh1 {[%clk 0:01:09.6]} 27... Re1 {[%clk
0:01:19.1]} 28. Rd1 {[%clk 0:01:11]} 28... R8e2 {[%clk 0:01:11.8]} 29. Rdxe1
{[%clk 0:00:55.1]} 29... Rxc2 {[%clk 0:01:12.2]} 30. Nxc2 {[%clk 0:00:57]} 30...
Bxb2 {[%clk 0:01:07.9]} 31. Rb1 {[%clk 0:00:57.8]} 31... Bc3 {[%clk 0:00:56.4]}
32. Rxb6 {[%clk 0:00:58.3]} 32... Qxa4 {[%clk 0:00:57.3]} 33. Ne3 {[%clk
0:00:59.7]} 33... Qf4 {[%clk 0:00:55.1]} 34. Nc2 {[%clk 0:00:55.1]} 34... Be5
{[%clk 0:00:53.1]} 35. g3 {[%clk 0:00:53.3]} 35... Qc4 {[%clk 0:00:53.3]} 36.
Ne3 {[%clk 0:00:53.7]} 36... Qd3 {[%clk 0:00:53.9]} 37. Re1 {[%clk 0:00:53.8]}
37... Bc3 {[%clk 0:00:45.1]} 38. Rb3 {[%clk 0:00:54.5]} 38... c4 {[%clk
0:00:43.7]} 39. Ra3 {[%clk 0:00:51.5]} 39... Bxe1 {[%clk 0:00:44.1]} 40. Rxd3
{[%clk 0:00:42.3]} 40... cxd3 {[%clk 0:00:46]} 41. Kg2 {[%clk 0:00:39.4]} 41...
a4 {[%clk 0:00:41]} 42. Kf1 {[%clk 0:00:40.8]} 42... Bb4 {[%clk 0:00:38.2]} 43.
Nc4 {[%clk 0:00:27.7]} 43... a3 {[%clk 0:00:37.8]} 0-1

[Event "*** Titled Tuesday Blitz"]
[Site "Chess.com"]
[Date "2020.02.04"]
[Round "9"]
[White "vova-79"]
[Black "VALPARAISO37"]
[Result "0-1"]
[WhiteElo "2451"]
[BlackElo "2286"]
[TimeControl "180+2"]
[EndTime "15:08:33 PST"]
[Termination "VALPARAISO37 won on time"]

1. d4 {[%clk 0:03:01.9]} 1... Nf6 {[%clk 0:02:58.7]} 2. c4 {[%clk 0:03:02.4]}
2... e6 {[%clk 0:02:54.5]} 3. Nc3 {[%clk 0:03:02.3]} 3... Bb4 {[%clk 0:02:53.7]}
4. e3 {[%clk 0:03:02.5]} 4... O-O {[%clk 0:02:52.5]} 5. Ne2 {[%clk 0:03:03]}
5... d5 {[%clk 0:02:52.8]} 6. a3 {[%clk 0:03:02.7]} 6... Be7 {[%clk 0:02:53]} 7.
cxd5 {[%clk 0:03:02.7]} 7... exd5 {[%clk 0:02:53.4]} 8. Nf4 {[%clk 0:03:03.1]}
8... c6 {[%clk 0:02:53.8]} 9. Bd3 {[%clk 0:03:04.2]} 9... Bd6 {[%clk 0:02:53.6]}
10. O-O {[%clk 0:03:04.4]} 10... Re8 {[%clk 0:02:53.6]} 11. f3 {[%clk
0:03:01.6]} 11... Nbd7 {[%clk 0:02:45.3]} 12. e4 {[%clk 0:02:51.2]} 12... Qb6
{[%clk 0:02:45.4]} 13. Bc2 {[%clk 0:02:27.4]} 13... Be5 {[%clk 0:02:31.5]} 14.
Nce2 {[%clk 0:01:38.6]} 14... Nf8 {[%clk 0:02:28.1]} 15. Kh1 {[%clk 0:01:36.8]}
15... Bxf4 {[%clk 0:02:23.4]} 16. Nxf4 {[%clk 0:01:36.3]} 16... dxe4 {[%clk
0:02:23.1]} 17. d5 {[%clk 0:01:29.9]} 17... exf3 {[%clk 0:02:20.9]} 18. Qxf3
{[%clk 0:01:26.7]} 18... Ng6 {[%clk 0:02:09.4]} 19. dxc6 {[%clk 0:00:50.3]}
19... bxc6 {[%clk 0:02:04.5]} 20. Nh5 {[%clk 0:00:45.7]} 20... Re6 {[%clk
0:01:44.8]} 21. Bf5 {[%clk 0:00:21.9]} 21... Nh4 {[%clk 0:01:37.5]} 22. Qg3
{[%clk 0:00:15.1]} 22... Nxh5 {[%clk 0:01:36.4]} 23. Qxh4 {[%clk 0:00:15.2]}
23... Rf6 {[%clk 0:01:14.6]} 24. Qxh5 {[%clk 0:00:13.8]} 24... g6 {[%clk
0:01:09.9]} 25. Qh4 {[%clk 0:00:08]} 25... Rxf5 {[%clk 0:00:35.5]} 26. Bg5
{[%clk 0:00:08]} 26... Rxf1+ {[%clk 0:00:29.6]} 27. Rxf1 {[%clk 0:00:07.2]}
27... f5 {[%clk 0:00:25.7]} 28. Re1 {[%clk 0:00:04.8]} 28... Ba6 {[%clk
0:00:24.8]} 29. Re7 {[%clk 0:00:02.7]} 29... h5 {[%clk 0:00:23.9]} 30. Bf6
{[%clk 0:00:02.7]} 30... Qc5 {[%clk 0:00:19]} 0-1

[Event "*** Titled Tuesday Blitz"]
[Site "Chess.com"]
[Date "2020.02.04"]
[Round "9"]
[White "Walter_White_Poland"]
[Black "2165149677570"]
[Result "1-0"]
[WhiteElo "2246"]
[BlackElo "2279"]
[TimeControl "180+2"]
[EndTime "15:08:36 PST"]
[Termination "Walter_White_Poland won by resignation"]

1. e4 {[%clk 0:03:01.9]} 1... c5 {[%clk 0:03:01.1]} 2. Nf3 {[%clk 0:03:02.4]}
2... e6 {[%clk 0:03:02]} 3. d4 {[%clk 0:03:03.6]} 3... cxd4 {[%clk 0:03:03.9]}
4. Nxd4 {[%clk 0:03:05.1]} 4... Nc6 {[%clk 0:03:05]} 5. Nc3 {[%clk 0:03:06.5]}
5... Nf6 {[%clk 0:03:06.3]} 6. Ndb5 {[%clk 0:03:06.8]} 6... d6 {[%clk
0:03:07.1]} 7. Bf4 {[%clk 0:03:07.4]} 7... e5 {[%clk 0:03:08.7]} 8. Bg5 {[%clk
0:03:08.8]} 8... a6 {[%clk 0:03:10.2]} 9. Na3 {[%clk 0:03:10]} 9... b5 {[%clk
0:03:11.9]} 10. Bxf6 {[%clk 0:03:11.3]} 10... gxf6 {[%clk 0:03:11]} 11. Nd5
{[%clk 0:03:11.6]} 11... Be6 {[%clk 0:03:12.5]} 12. c3 {[%clk 0:02:13.9]} 12...
Bg7 {[%clk 0:03:10.8]} 13. Nc2 {[%clk 0:02:13.4]} 13... O-O {[%clk 0:03:09.5]}
14. Nce3 {[%clk 0:02:13.4]} 14... Ne7 {[%clk 0:03:07.4]} 15. Be2 {[%clk
0:02:01.4]} 15... Nxd5 {[%clk 0:02:53.7]} 16. exd5 {[%clk 0:01:46.5]} 16... Bd7
{[%clk 0:02:54.5]} 17. Bg4 {[%clk 0:01:46.8]} 17... Bh6 {[%clk 0:02:33.1]} 18.
O-O {[%clk 0:01:25.3]} 18... Qc8 {[%clk 0:02:23.1]} 19. Bxd7 {[%clk 0:01:22.8]}
19... Qxd7 {[%clk 0:02:25]} 20. Qh5 {[%clk 0:01:22.8]} 20... Bg5 {[%clk
0:02:16.5]} 21. h4 {[%clk 0:01:14.7]} 21... Bxe3 {[%clk 0:02:16.7]} 22. fxe3
{[%clk 0:01:15.6]} 22... Qe7 {[%clk 0:01:41.3]} 23. Qh6 {[%clk 0:00:51.3]} 23...
Kh8 {[%clk 0:01:40.1]} 24. Rxf6 {[%clk 0:00:42.9]} 24... Rg8 {[%clk 0:01:39.3]}
25. Raf1 {[%clk 0:00:41.7]} 25... Rg7 {[%clk 0:01:38.2]} 26. R1f2 {[%clk
0:00:27.5]} 26... Rag8 {[%clk 0:01:38.5]} 27. Rxd6 {[%clk 0:00:18.9]} 27... f5
{[%clk 0:01:38]} 28. Qf6 {[%clk 0:00:16.1]} 28... Qa7 {[%clk 0:01:36.3]} 29.
Qxe5 {[%clk 0:00:10.5]} 29... Rf8 {[%clk 0:01:08.9]} 30. h5 {[%clk 0:00:10.7]}
30... Kg8 {[%clk 0:01:02.4]} 31. Re6 {[%clk 0:00:10]} 31... Qf7 {[%clk
0:00:49.1]} 32. h6 {[%clk 0:00:09.6]} 32... Rg4 {[%clk 0:00:36.6]} 33. Re7
{[%clk 0:00:08.4]} 33... Re4 {[%clk 0:00:37.9]} 34. Qg7+ {[%clk 0:00:08.3]}
34... Qxg7 {[%clk 0:00:38.7]} 35. Rxg7+ {[%clk 0:00:09.5]} 35... Kh8 {[%clk
0:00:40]} 36. d6 {[%clk 0:00:09.5]} 36... Rxe3 {[%clk 0:00:37.4]} 37. Rd2 {[%clk
0:00:10.1]} 37... Ree8 {[%clk 0:00:33.8]} 38. d7 {[%clk 0:00:10.7]} 38... Rd8
{[%clk 0:00:35.4]} 39. Re2 {[%clk 0:00:11]} 39... f4 {[%clk 0:00:30.3]} 40. Ree7
{[%clk 0:00:11.5]} 1-0

[Event "*** Titled Tuesday Blitz"]
[Site "Chess.com"]
[Date "2020.02.04"]
[Round "9"]
[White "ChessBitl"]
[Black "AnnaChessLook"]
[Result "0-1"]
[WhiteElo "2331"]
[BlackElo "2241"]
[TimeControl "180+2"]
[EndTime "15:08:39 PST"]
[Termination "AnnaChessLook won on time"]

1. e4 {[%clk 0:03:00.5]} 1... c5 {[%clk 0:02:59.4]} 2. Nf3 {[%clk 0:03:01.1]}
2... Nc6 {[%clk 0:03:00]} 3. d4 {[%clk 0:03:02.1]} 3... cxd4 {[%clk 0:03:01.2]}
4. Nxd4 {[%clk 0:03:03.6]} 4... g6 {[%clk 0:03:02.2]} 5. c4 {[%clk 0:03:03.9]}
5... d6 {[%clk 0:03:01.2]} 6. Be3 {[%clk 0:03:04.2]} 6... Nf6 {[%clk 0:02:58.1]}
7. Nc3 {[%clk 0:03:03.5]} 7... Ng4 {[%clk 0:02:57.5]} 8. Nxc6 {[%clk 0:03:00.6]}
8... Nxe3 {[%clk 0:02:34.7]} 9. Nxd8 {[%clk 0:02:56.9]} 9... Nxd1 {[%clk
0:02:35]} 10. Rxd1 {[%clk 0:02:48.6]} 10... Kxd8 {[%clk 0:02:34.9]} 11. e5
{[%clk 0:02:50.2]} 11... Be6 {[%clk 0:02:25.7]} 12. exd6 {[%clk 0:02:41.5]}
12... exd6 {[%clk 0:02:22.5]} 13. Nb5 {[%clk 0:02:42.9]} 13... a6 {[%clk
0:02:01.6]} 14. Nxd6 {[%clk 0:02:39.9]} 14... Kc7 {[%clk 0:02:01.9]} 15. c5
{[%clk 0:02:26.3]} 15... Bxa2 {[%clk 0:01:58.9]} 16. Be2 {[%clk 0:02:18]} 16...
Rd8 {[%clk 0:01:50.2]} 17. Bf3 {[%clk 0:02:02.8]} 17... Bxd6 {[%clk 0:01:27.9]}
18. cxd6+ {[%clk 0:02:03.1]} 18... Rxd6 {[%clk 0:01:28.6]} 19. Rxd6 {[%clk
0:01:55.5]} 19... Kxd6 {[%clk 0:01:30.5]} 20. Bxb7 {[%clk 0:01:49.4]} 20... a5
{[%clk 0:01:30.4]} 21. O-O {[%clk 0:01:40.1]} 21... Rb8 {[%clk 0:01:25.9]} 22.
Rd1+ {[%clk 0:01:40.5]} 22... Ke7 {[%clk 0:01:18]} 23. Ra1 {[%clk 0:01:30.6]}
23... Bc4 {[%clk 0:00:52.3]} 24. Bf3 {[%clk 0:01:11]} 24... Rxb2 {[%clk
0:00:48.8]} 25. g4 {[%clk 0:01:12.5]} 25... Ra2 {[%clk 0:00:42.7]} 26. Rc1
{[%clk 0:01:08.6]} 26... Be6 {[%clk 0:00:39.7]} 27. g5 {[%clk 0:01:09.7]} 27...
Ra3 {[%clk 0:00:29]} 28. Kg2 {[%clk 0:01:08.6]} 28... a4 {[%clk 0:00:25.3]} 29.
Rc7+ {[%clk 0:01:04.7]} 29... Kd6 {[%clk 0:00:25.6]} 30. Ra7 {[%clk 0:01:06.3]}
30... Ra1 {[%clk 0:00:21.6]} 31. Ra6+ {[%clk 0:00:58.5]} 31... Ke5 {[%clk
0:00:21.9]} 32. Kg3 {[%clk 0:00:53.7]} 32... a3 {[%clk 0:00:18.8]} 33. Ra5+
{[%clk 0:00:37.6]} 33... Kd4 {[%clk 0:00:19.2]} 34. Ra8 {[%clk 0:00:16.7]} 34...
a2 {[%clk 0:00:17.8]} 35. Rd8+ {[%clk 0:00:17.4]} 35... Ke5 {[%clk 0:00:18.9]}
0-1

[Event "*** Titled Tuesday Blitz"]
[Site "Chess.com"]
[Date "2020.02.04"]
[Round "9"]
[White "Kobalia"]
[Black "amiralfio"]
[Result "1-0"]
[WhiteElo "2656"]
[BlackElo "2533"]
[TimeControl "180+2"]
[EndTime "15:08:43 PST"]
[Termination "Kobalia won by resignation"]

1. e4 {[%clk 0:03:01.9]} 1... c5 {[%clk 0:02:59.3]} 2. Nf3 {[%clk 0:03:02.3]}
2... e6 {[%clk 0:02:59.3]} 3. g3 {[%clk 0:03:02.7]} 3... d5 {[%clk 0:02:59.2]}
4. exd5 {[%clk 0:03:03.7]} 4... exd5 {[%clk 0:02:59.6]} 5. d4 {[%clk 0:03:04.7]}
5... Nf6 {[%clk 0:02:59.7]} 6. Bg2 {[%clk 0:03:05.4]} 6... Nc6 {[%clk
0:02:59.2]} 7. O-O {[%clk 0:03:05.8]} 7... Bg4 {[%clk 0:03:00.7]} 8. Re1+ {[%clk
0:03:00.9]} 8... Be7 {[%clk 0:02:55.6]} 9. dxc5 {[%clk 0:03:01.5]} 9... O-O
{[%clk 0:02:49.1]} 10. h3 {[%clk 0:03:01.7]} 10... Bh5 {[%clk 0:02:46.6]} 11.
Nc3 {[%clk 0:03:01.8]} 11... Bxc5 {[%clk 0:02:34.3]} 12. Bg5 {[%clk 0:03:01]}
12... d4 {[%clk 0:02:35.3]} 13. Bxf6 {[%clk 0:02:44.7]} 13... Qxf6 {[%clk
0:02:26]} 14. Nd5 {[%clk 0:01:58.9]} 14... Qd6 {[%clk 0:02:21.9]} 15. Nf4 {[%clk
0:01:59.5]} 15... Bg6 {[%clk 0:02:13.3]} 16. Nxg6 {[%clk 0:02:00.1]} 16... Qxg6
{[%clk 0:01:34]} 17. Qd3 {[%clk 0:01:46.5]} 17... Qxd3 {[%clk 0:01:32.9]} 18.
cxd3 {[%clk 0:01:46.8]} 18... Rfe8 {[%clk 0:01:29.1]} 19. a3 {[%clk 0:01:46.8]}
19... Kf8 {[%clk 0:01:19.5]} 20. Kf1 {[%clk 0:01:46.8]} 20... Rxe1+ {[%clk
0:01:19.6]} 21. Rxe1 {[%clk 0:01:46.3]} 21... f6 {[%clk 0:01:14.7]} 22. Rc1
{[%clk 0:01:46.1]} 22... Bb6 {[%clk 0:01:10.1]} 23. Nd2 {[%clk 0:01:46.3]} 23...
Rc8 {[%clk 0:01:05.2]} 24. b4 {[%clk 0:01:45.9]} 24... a6 {[%clk 0:01:00.2]} 25.
Be4 {[%clk 0:01:33.7]} 25... g6 {[%clk 0:00:55.4]} 26. g4 {[%clk 0:01:22.3]}
26... Ke7 {[%clk 0:00:48.3]} 27. h4 {[%clk 0:01:18.6]} 27... Kd8 {[%clk
0:00:40]} 28. h5 {[%clk 0:01:07.9]} 28... Ne5 {[%clk 0:00:40.2]} 29. Nc4 {[%clk
0:00:38.3]} 29... Rc7 {[%clk 0:00:15.7]} 30. hxg6 {[%clk 0:00:33.7]} 30... hxg6
{[%clk 0:00:17.6]} 31. Ke2 {[%clk 0:00:32.7]} 31... Ba7 {[%clk 0:00:16.7]} 32.
Rh1 {[%clk 0:00:27.2]} 32... Nxc4 {[%clk 0:00:16.4]} 33. Rh8+ {[%clk 0:00:26.8]}
33... Ke7 {[%clk 0:00:16.7]} 34. dxc4 {[%clk 0:00:27]} 34... Rxc4 {[%clk
0:00:16.9]} 35. Rh7+ {[%clk 0:00:27.1]} 35... Ke6 {[%clk 0:00:15.8]} 36. Rxb7
{[%clk 0:00:19.6]} 36... d3+ {[%clk 0:00:07.7]} 37. Bxd3 {[%clk 0:00:19.8]}
37... Rc3 {[%clk 0:00:08]} 38. Rxa7 {[%clk 0:00:20]} 1-0

[Event "*** Titled Tuesday Blitz"]
[Site "Chess.com"]
[Date "2020.02.04"]
[Round "9"]
[White "Arathorn2"]
[Black "MateusViageiro"]
[Result "0-1"]
[WhiteElo "2237"]
[BlackElo "2190"]
[TimeControl "180+2"]
[EndTime "15:08:43 PST"]
[Termination "MateusViageiro won by checkmate"]

1. d4 {[%clk 0:03:01.9]} 1... Nf6 {[%clk 0:03:00.1]} 2. c4 {[%clk 0:03:00.3]}
2... e6 {[%clk 0:03:01.4]} 3. Nf3 {[%clk 0:03:00.5]} 3... b6 {[%clk 0:03:02]} 4.
a3 {[%clk 0:03:00.9]} 4... Ba6 {[%clk 0:03:02.7]} 5. Qc2 {[%clk 0:03:00.5]} 5...
c5 {[%clk 0:03:03]} 6. g3 {[%clk 0:02:57.5]} 6... Nc6 {[%clk 0:03:00.3]} 7. Bg2
{[%clk 0:02:57.2]} 7... Rc8 {[%clk 0:02:59.4]} 8. dxc5 {[%clk 0:02:52.1]} 8...
bxc5 {[%clk 0:02:59.6]} 9. O-O {[%clk 0:02:51.7]} 9... Be7 {[%clk 0:02:57.5]}
10. b3 {[%clk 0:02:50.7]} 10... O-O {[%clk 0:02:55.5]} 11. Bb2 {[%clk
0:02:48.4]} 11... Qb6 {[%clk 0:02:54.8]} 12. Nbd2 {[%clk 0:02:38.6]} 12... d5
{[%clk 0:02:52.2]} 13. Rab1 {[%clk 0:02:35.7]} 13... Nd4 {[%clk 0:02:51.7]} 14.
Qd3 {[%clk 0:02:01.8]} 14... dxc4 {[%clk 0:02:49.6]} 15. bxc4 {[%clk 0:01:58]}
15... Nxf3+ {[%clk 0:02:47.8]} 16. Nxf3 {[%clk 0:01:45.6]} 16... Qa5 {[%clk
0:02:43.3]} 17. Ne5 {[%clk 0:01:26.9]} 17... Rfd8 {[%clk 0:02:41.8]} 18. Qc2
{[%clk 0:01:26.4]} 18... Rd2 {[%clk 0:02:39.4]} 19. Qc1 {[%clk 0:01:13.6]} 19...
Rxe2 {[%clk 0:02:32.7]} 20. Nc6 {[%clk 0:01:07.7]} 20... Qc7 {[%clk 0:02:31.9]}
21. Nxe7+ {[%clk 0:01:06.1]} 21... Qxe7 {[%clk 0:02:30.5]} 22. Bf3 {[%clk
0:01:05.5]} 22... Rxb2 {[%clk 0:02:09.1]} 23. Rxb2 {[%clk 0:01:05.5]} 23... h6
{[%clk 0:02:07.3]} 24. Rd1 {[%clk 0:01:05]} 24... e5 {[%clk 0:02:06.9]} 25. Bd5
{[%clk 0:00:50.4]} 25... e4 {[%clk 0:02:05.5]} 26. Qe3 {[%clk 0:00:45.8]} 26...
Re8 {[%clk 0:02:03.7]} 27. Rdb1 {[%clk 0:00:41.4]} 27... Ng4 {[%clk 0:02:03.1]}
28. Qf4 {[%clk 0:00:41]} 28... Nf6 {[%clk 0:01:55.7]} 29. Rb8 {[%clk 0:00:40.3]}
29... Bc8 {[%clk 0:01:51]} 30. Bb7 {[%clk 0:00:36.5]} 30... Bxb7 {[%clk
0:01:42.5]} 31. R1xb7 {[%clk 0:00:34.4]} 31... Qe6 {[%clk 0:01:42.8]} 32. Rxe8+
{[%clk 0:00:33.7]} 32... Nxe8 {[%clk 0:01:43.2]} 33. Rxa7 {[%clk 0:00:31.4]}
33... g5 {[%clk 0:01:41.9]} 34. Qb8 {[%clk 0:00:29.3]} 34... Kg7 {[%clk
0:01:27.4]} 35. Ra8 {[%clk 0:00:28.9]} 35... Nf6 {[%clk 0:01:27.1]} 36. Qf8+
{[%clk 0:00:27.5]} 36... Kg6 {[%clk 0:01:26]} 37. Qxc5 {[%clk 0:00:29.4]} 37...
Qg4 {[%clk 0:01:19.1]} 38. Qe3 {[%clk 0:00:21.2]} 38... Qd1+ {[%clk 0:01:16.6]}
39. Kg2 {[%clk 0:00:21.5]} 39... Qc2 {[%clk 0:01:16.4]} 40. c5 {[%clk
0:00:19.5]} 40... Ng4 {[%clk 0:01:16.3]} 41. Qd4 {[%clk 0:00:18.6]} 41... e3
{[%clk 0:01:14.7]} 42. Ra6+ {[%clk 0:00:18.3]} 42... f6 {[%clk 0:01:13.3]} 43.
Qxg4 {[%clk 0:00:07.3]} 43... Qxf2+ {[%clk 0:01:11.9]} 44. Kh3 {[%clk
0:00:07.6]} 44... Qf1# {[%clk 0:01:12.8]} 0-1